bitfinex-derivatives/quotes_ETHF0:USTF0_20260131
["timestamp","ask_amount","ask_price","bid_price","bid_amount"]
[1769897296375,0.14856414,2417.8,2417.0,3.94734751]
[1769897296579,0.14856414,2418.3,2417.2,0.15228551]
[1769897296777,0.20703,2418.3,2417.4,0.15228551]
[1769897296976,0.14856414,2418.0,2417.3,3.94734751]
[1769897297276,0.14856414,2417.8,2417.0,0.15228551]
[1769897297576,0.14856414,2418.3,2417.2,0.15228551]
[1769897298078,0.14856414,2418.1,2417.2,0.15228551]
[1769897299175,0.35561414,2418.1,2417.2,0.15228551]
[1769897299879,0.20705,2418.1,2417.2,0.15228551]
[1769897300379,0.20705,2418.1,2417.3,0.15228551]
[1769897302979,0.20705,2418.1,2417.3,4.96123042]
[1769897305483,0.20705,2418.1,2417.5,2.40924099]
[1769897306781,0.14856414,2417.8,2417.3,4.80894491]
[1769897306985,0.14856414,2417.8,2417.0,4.96123042]
[1769897307284,0.14856414,2417.8,2417.0,0.15228551]
[1769897308078,0.2071,2417.6,2416.9,4.80894491]
[1769897308285,0.35566414,2417.6,2416.9,4.80894491]
[1769897309089,0.35566414,2417.6,2417.0,3.81091414]
[1769897309282,0.35566414,2417.6,2417.1,3.81091414]
[1769897309483,0.35566414,2417.6,2417.0,3.81091414]
[1769897309682,0.35566414,2417.6,2417.1,3.81091414]
[1769897309984,0.35566414,2417.6,2416.9,3.81091414]
[1769897310185,0.35566414,2417.6,2417.0,3.81091414]
[1769897310380,0.35566414,2417.6,2417.1,3.81091414]
[1769897310585,0.2071,2417.6,2416.9,3.96319965]
[1769897310884,0.2071,2417.6,2417.0,3.81091414]
[1769897311077,0.2071,2417.6,2416.9,0.15228551]
[1769897311078,0.2071,2417.6,2417.1,3.81091414]
[1769897311277,0.2071,2417.6,2417.0,3.81091414]
[1769897311482,0.2071,2417.6,2417.1,3.81091414]
[1769897311681,0.2071,2417.6,2417.0,3.81091414]
[1769897311887,0.2071,2417.6,2417.1,3.81091414]
[1769897312189,0.2071,2417.6,2416.9,4.96123042]
[1769897312382,0.2071,2417.6,2417.0,3.81165217]
[1769897312582,0.2071,2417.6,2417.1,3.81165217]
[1769897312783,0.2071,2417.6,2416.9,4.96123042]
[1769897313086,0.2071,2417.6,2417.0,3.81162491]
[1769897313287,0.2071,2417.6,2417.1,3.81162491]
[1769897313487,0.2071,2417.6,2416.9,0.15228551]
[1769897313786,0.2071,2417.6,2417.0,3.8133639]
[1769897313986,0.35566414,2417.6,2417.1,3.8133639]
[1769897314187,0.35566414,2417.6,2416.9,4.96123042]
[1769897314390,0.35566414,2417.6,2417.0,3.81595216]
[1769897314588,0.35566414,2417.6,2417.1,3.81595216]
[1769897314790,0.35566414,2417.6,2416.9,4.96123042]
[1769897314991,0.35566414,2417.6,2417.0,3.81753636]
[1769897315184,2.42779094,2418.1,2416.7,4.80894491]
[1769897315384,2.42779094,2418.1,2416.7,0.16205745]
[1769897315593,0.20714,2417.1,2416.5,0.16205745]
[1769897315791,0.21027609,2417.1,2416.5,0.16205745]
[1769897316387,0.20716,2416.9,2416.4,0.0041698]
[1769897316581,0.00313609,2417.1,2416.2,0.16228142]
[1769897316582,0.20718,2416.6,2416.2,0.16228142]
[1769897316889,0.20718,2416.6,2415.9,0.16228142]
[1769897317186,0.00313609,2417.1,2415.9,0.16228142]
[1769897317391,0.2072,2416.4,2415.6,0.16228245]
[1769897317584,2.43092703,2417.1,2415.6,0.16228245]
[1769897317789,0.20724,2415.9,2415.3,0.16228245]
[1769897318288,2.428,2416.5,2415.3,0.16228245]
[1769897318790,0.20721,2416.3,2415.3,0.16726634]
[1769897319684,3.312,2416.6,2415.3,0.16726634]
[1769897320286,3.51918,2416.6,2415.3,0.16726634]
[1769897321085,0.20718,2416.6,2415.3,0.16726634]
[1769897321288,0.00313609,2417.1,2415.4,0.16317122]
[1769897321494,0.00313609,2417.1,2415.6,0.15462366]
[1769897322292,0.20716,2416.8,2415.7,0.15462366]
[1769897322488,0.20722,2416.1,2415.4,0.15462366]
[1769897324793,0.20722,2416.1,2415.3,0.00498389]
[1769897324794,0.20724,2415.9,2415.3,0.00498389]
[1769897325296,0.20725,2415.8,2414.6,3.219]
[1769897325495,0.36617383,2415.8,2414.6,3.219]
[1769897325895,0.20725,2415.8,2414.6,3.219]
[1769897326388,0.20725,2415.8,2414.6,3.2226174]
[1769897327092,0.36619383,2415.6,2414.6,3.2226174]
[1769897327286,0.15892383,2415.4,2414.6,3.2226174]
[1769897327487,0.16343492,2415.4,2414.6,3.2226174]
[1769897327691,0.00451109,2415.4,2414.7,0.15462366]
[1769897327893,0.36614383,2416.1,2414.7,0.15462366]
[1769897328191,0.33085567,2416.1,2414.7,0.15462366]
[1769897328389,0.15892383,2416.8,2415.5,0.15462366]
[1769897328793,0.16256813,2416.8,2415.5,0.15462366]
[1769897328988,0.0036443,2416.8,2415.6,0.15462366]
[1769897329293,0.16256813,2416.8,2415.6,0.15462366]
[1769897329594,0.0036443,2416.8,2415.6,0.15462366]
[1769897329899,0.2612,2417.4,2415.5,3.61133362]
[1769897329900,0.2612,2417.4,2415.9,0.15462366]
[1769897330097,0.2612,2417.4,2416.2,0.15462366]
[1769897330290,0.2612,2417.4,2416.3,0.15462366]
[1769897330495,0.20705,2418.1,2416.8,3.61133362]
[1769897330699,0.36901137,2418.7,2416.9,3.61133362]
[1769897330995,0.00509591,2418.7,2417.2,3.61133362]
[1769897331201,3.47501137,2419.7,2417.9,3.61133362]
[1769897331389,0.33278815,2419.8,2418.1,3.61133362]
[1769897331591,0.20689,2419.9,2418.2,3.61133362]
[1769897331789,0.16201137,2419.8,2418.1,3.61133362]
[1769897332198,0.16716141,2419.8,2418.1,3.61133362]
[1769897332394,0.1643022,2419.7,2418.1,3.61133362]
[1769897332595,0.1643022,2419.7,2418.0,10.45933362]
[1769897332795,0.1643022,2419.4,2418.0,6.848]
[1769897334195,0.3712522,2419.3,2418.0,3.313]
[1769897334391,0.1643022,2419.2,2418.0,3.313]
[1769897334798,0.16424685,2419.0,2417.2,3.61133362]
[1769897335000,0.16424685,2419.0,2417.1,6.03933362]
[1769897335198,0.16424685,2419.0,2417.2,3.61133362]
[1769897336001,0.16424685,2419.0,2417.1,6.24646362]
[1769897336404,0.16424685,2419.0,2417.1,2.428]
[1769897336802,0.16265464,2418.9,2417.1,2.428]
[1769897337001,0.16265464,2418.8,2417.1,2.428]
[1769897340004,0.16265464,2418.8,2417.1,2.63513]
[1769897340704,0.16265464,2418.8,2417.1,2.428]
[1769897340903,0.16261636,2418.7,2417.1,2.428]
[1769897341109,0.16261636,2418.5,2417.1,2.428]
[1769897341407,0.16261636,2418.4,2416.9,0.00373428]
[1769897341609,0.16261636,2418.3,2416.9,0.00373428]
[1769897343015,0.16269092,2418.0,2416.9,0.00373428]
[1769897343312,0.16269092,2417.6,2416.0,2.428]
[1769897343510,0.16269092,2417.5,2416.0,2.428]
[1769897343712,0.16269092,2417.4,2416.0,2.428]
[1769897344110,0.16269092,2417.3,2416.0,2.4309134]
[1769897344408,0.16140944,2417.2,2416.0,2.43211726]
[1769897344613,0.00411523,2418.0,2416.4,0.00120386]
[1769897344809,0.00411523,2418.0,2416.0,6.04224702]
[1769897344810,0.00411523,2418.0,2416.5,0.00120386]
[1769897346127,0.16552467,2418.0,2416.6,0.00120386]
[1769897347319,0.00411523,2418.0,2416.6,0.00120386]
[1769897347628,0.16198362,2418.1,2416.7,3.61133362]
[1769897347820,0.16198362,2418.1,2416.6,3.61133362]
[1769897348020,0.16198362,2418.1,2416.7,3.61133362]
[1769897348225,0.16198362,2418.0,2416.6,3.61133362]
[1769897348615,0.16705173,2418.0,2416.6,3.61133362]
[1769897349126,0.16705173,2418.0,2416.7,3.61133362]
[1769897349322,0.16705173,2418.0,2416.8,4.049]
[1769897349919,0.16222953,2417.9,2416.8,4.049]
[1769897350120,0.16222953,2417.3,2415.9,3.61133362]
[1769897351228,0.36811874,2417.2,2415.9,3.61133362]
[1769897351722,0.16098874,2417.1,2415.9,3.61133362]
[1769897352226,0.16098874,2417.1,2415.8,4.03422975]
[1769897352528,0.16622148,2418.0,2416.4,0.00166049]
[1769897352728,0.00506811,2418.0,2416.5,0.00166049]
[1769897353024,0.16622148,2418.0,2416.7,0.00166049]
[1769897353524,0.16622148,2418.0,2416.6,3.776]
[1769897354426,0.16052519,2417.9,2416.6,3.776]
[1769897357322,0.16052519,2417.9,2416.6,7.38733362]
[1769897357725,0.16052519,2417.9,2416.8,3.614344]
[1769897357924,0.16052519,2417.9,2416.8,0.00301038]
[1769897358327,0.16052519,2417.9,2416.8,7.37354022]
[1769897358929,0.15992786,2417.8,2416.5,7.37354022]
[1769897359123,0.15992786,2417.6,2416.5,3.61133362]
[1769897359328,0.15992786,2417.6,2416.3,3.61133362]
[1769897359528,0.15992786,2417.6,2416.3,7.37354022]
[1769897359728,0.15992786,2417.6,2416.2,7.37354022]
[1769897359930,0.15992786,2417.6,2416.3,7.37354022]
[1769897360131,0.36701786,2417.6,2416.3,7.37354022]
[1769897360333,0.15992786,2417.5,2416.3,7.37354022]
[1769897360535,0.16012008,2417.9,2416.6,3.61506069]
[1769897360831,0.16012008,2417.9,2416.6,7.37726729]
[1769897361331,0.16012008,2417.9,2416.8,3.61133362]
[1769897361532,0.16012008,2417.9,2416.8,7.37354022]
[1769897362131,0.16012008,2417.9,2416.9,0.00372707]
[1769897362331,0.16012008,2417.9,2416.9,7.37726729]
[1769897362533,0.16012008,2417.9,2417.0,3.7622066]
[1769897363334,0.16012008,2417.9,2417.1,3.7622066]
[1769897364436,0.16012008,2417.9,2417.2,3.7622066]
[1769897364633,0.16012008,2417.9,2417.1,3.7622066]
[1769897364936,0.16012008,2417.9,2417.2,3.7622066]
[1769897365137,0.16012008,2417.9,2417.1,7.37354022]
[1769897365337,0.16012008,2417.9,2417.2,3.7622066]
[1769897365536,0.16012008,2417.9,2417.1,3.61133362]
[1769897365732,0.16012008,2417.9,2417.2,3.88461967]
[1769897365933,0.16012008,2417.9,2417.1,3.61133362]
[1769897366139,0.15565008,2417.5,2416.9,3.61133362]
[1769897366336,0.15565008,2417.5,2416.7,3.61133362]
[1769897366935,0.15565008,2417.5,2416.8,2.4281632]
[1769897367337,0.36275008,2417.5,2416.8,2.4281632]
[1769897367740,0.36276008,2417.4,2416.9,2.4281632]
[1769897368036,0.20707,2417.8,2417.0,6.19504857]
[1769897368343,0.20707,2417.8,2417.1,2.4281632]
[1769897370432,0.20709,2417.6,2417.1,2.4281632]
[1769897370633,0.15565008,2417.5,2417.1,2.4281632]
[1769897370836,0.15565008,2417.5,2417.0,2.4281632]
[1769897373943,0.20709,2417.6,2417.2,0.15555175]
[1769897374244,0.16071819,2418.0,2417.2,0.15555175]
[1769897374848,0.36777819,2418.0,2417.3,2.4281632]
[1769897375346,0.36274008,2417.6,2417.1,2.4281632]
[1769897375535,0.36274008,2417.6,2417.2,2.4281632]
[1769897375940,0.20709,2417.6,2417.2,2.58371495]
[1769897376141,0.00506811,2418.0,2417.4,2.58371495]
[1769897376742,0.15565008,2417.7,2417.3,2.4336447]
[1769897376944,0.20708,2417.8,2417.1,3.76423782]
[1769897378251,0.20708,2417.8,2417.2,3.91596851]
[1769897378445,0.20708,2417.8,2417.3,3.91596851]
[1769897378641,0.20708,2417.8,2417.1,3.76423782]
[1769897378950,0.20708,2417.8,2417.2,3.91481304]
[1769897379152,0.36794294,2417.6,2417.0,3.61133362]
[1769897379348,0.16085294,2417.5,2417.1,7.5264232]
[1769897379650,0.16085294,2417.5,2417.2,3.91508958]
[1769897379850,0.16085294,2417.5,2417.0,3.61133362]
[1769897380045,0.16085294,2417.5,2417.1,3.81479801]
[1769897380245,0.16085294,2417.5,2417.0,3.61133362]
[1769897380450,0.16085294,2417.5,2417.1,3.81521891]
[1769897380653,0.16085294,2417.5,2417.0,3.61133362]
[1769897380848,0.36796294,2417.4,2416.8,3.33901292]
[1769897381045,0.36796294,2417.4,2416.6,4.80894491]
[1769897381245,0.20711,2417.4,2416.7,0.16126678]
[1769897381648,0.20711,2417.4,2416.6,4.80894491]
[1769897381854,0.20711,2417.4,2416.5,4.97021169]
[1769897382946,0.20711,2417.4,2416.6,0.16126678]
[1769897384749,0.35992045,2417.4,2416.6,0.16126678]
[1769897386344,0.15281045,2417.1,2416.5,4.80894491]
[1769897386547,0.15281045,2417.1,2416.4,4.97021169]
[1769897386748,0.20713,2417.2,2416.5,0.16126678]
[1769897386945,0.00506811,2418.0,2416.7,0.12466779]
[1769897387145,0.20708,2417.8,2416.9,4.80894491]
[1769897387345,0.20708,2417.8,2417.0,0.12466779]
[1769897387655,0.20708,2417.8,2417.1,0.12466779]
[1769897387856,0.20708,2417.8,2417.1,4.9336127]
[1769897388353,0.20708,2417.8,2417.1,0.12466779]
[1769897389453,0.20708,2417.8,2417.1,4.9336127]
[1769897391856,0.20708,2417.8,2417.1,4.80894491]
[1769897392349,0.20708,2417.8,2417.0,4.80894491]
[1769897392654,0.35989045,2417.8,2417.0,4.80894491]
[1769897392853,0.35989045,2417.8,2417.1,8.81565091]
[1769897393055,0.35989045,2417.8,2417.2,4.006706]
[1769897393255,0.15281045,2417.7,2417.3,4.006706]
[1769897393457,0.15281045,2417.7,2417.4,4.006706]
[1769897393759,0.15281045,2417.7,2417.1,4.80894491]
[1769897393956,0.15281045,2417.7,2417.2,4.00601203]
[1769897394156,0.15281045,2417.7,2417.3,4.00601203]
[1769897394358,0.15281045,2417.7,2417.1,4.80894491]
[1769897394556,0.15281045,2417.7,2417.2,3.89757999]
[1769897394757,0.15281045,2417.7,2417.3,3.89757999]
[1769897394958,0.15281045,2417.7,2417.0,4.80894491]
[1769897395158,0.15281045,2417.7,2417.1,3.86850693]
[1769897395358,0.15281045,2417.7,2417.2,3.86850693]
[1769897395659,0.15281045,2417.7,2417.3,3.86850693]
[1769897395860,0.15281045,2417.7,2417.0,4.80894491]
[1769897396060,0.15281045,2417.7,2417.1,3.86905638]
[1769897396357,0.15281045,2417.7,2417.2,3.86905638]
[1769897396560,0.15281045,2417.7,2417.3,3.86905638]
[1769897396752,0.15281045,2417.7,2417.0,4.80894491]
[1769897396950,0.15281045,2417.7,2417.1,8.67954624]
[1769897397161,0.15281045,2417.7,2417.2,3.87060133]
[1769897397457,0.15281045,2417.7,2417.3,3.87060133]
[1769897397761,0.15281045,2417.7,2417.1,4.80894491]
[1769897397953,0.15281045,2417.7,2417.2,3.8707619]
[1769897398261,0.15281045,2417.7,2417.3,3.8707619]
[1769897398461,0.15281045,2417.7,2417.1,4.80894491]
[1769897398664,0.15281045,2417.7,2417.2,3.86970664]
[1769897398862,0.15281045,2417.7,2417.3,3.86970664]
[1769897399062,0.15281045,2417.7,2417.1,4.80894491]
[1769897399262,0.15281045,2417.7,2417.2,3.86966268]
[1769897399461,0.15281045,2417.7,2417.3,3.86966268]
[1769897399762,0.20708,2417.8,2417.1,4.93480047]
[1769897399962,0.20708,2417.8,2417.2,3.8684443]
[1769897400159,0.35989045,2417.8,2417.3,3.8684443]
[1769897400359,0.35989045,2417.8,2417.1,4.93480047]
[1769897400558,0.35989045,2417.8,2417.2,3.86735509]
[1769897400761,0.35989045,2417.8,2417.3,3.86735509]
[1769897400962,0.35989045,2417.8,2417.1,4.93480047]
[1769897401163,0.35989045,2417.8,2417.2,3.86778263]
[1769897401362,0.35989045,2417.8,2417.3,3.86778263]
[1769897401558,0.00506811,2418.0,2417.2,0.12666957]
[1769897401764,0.16195689,2418.7,2417.3,3.87085857]
[1769897402066,0.20703,2418.3,2417.4,3.87085857]
[1769897402261,0.20703,2418.3,2417.5,3.87085857]
[1769897402463,0.20703,2418.3,2417.6,3.87085857]
[1769897402763,0.21140735,2418.3,2417.3,4.80894491]
[1769897402964,0.21140735,2418.3,2417.4,3.86961323]
[1769897403156,0.21140735,2418.3,2417.5,3.86961323]
[1769897403356,0.21140735,2418.3,2417.6,3.86961323]
[1769897403559,0.21140735,2418.3,2417.7,3.86961323]
[1769897403764,0.21140735,2418.3,2417.7,0.00509989]
[1769897404262,0.16195127,2418.1,2417.3,4.80894491]
[1769897404462,0.16195127,2418.1,2417.2,4.80894491]
[1769897404763,0.16195127,2418.1,2417.1,4.132]
[1769897404764,0.36927612,2418.2,2417.3,4.80894491]
[1769897404963,0.16223612,2418.1,2417.2,4.80894491]
[1769897405164,0.16223612,2418.1,2417.2,4.81298741]
[1769897407062,0.16308834,2417.8,2416.6,14.76230951]
[1769897407263,0.16308834,2417.8,2416.6,5.96262323]
[1769897408064,0.00437735,2418.3,2416.8,5.96262323]
[1769897408269,0.00437735,2418.3,2417.0,5.96262323]
[1769897408470,0.00437735,2418.3,2417.1,8.39062323]
[1769897408776,0.00437735,2418.3,2417.3,5.96262323]
[1769897408980,0.00437735,2418.3,2417.4,5.96262323]
[1769897409374,0.16355893,2418.1,2417.0,14.76230951]
[1769897409580,0.16355893,2418.1,2417.0,5.96262323]
[1769897410183,0.37060893,2418.1,2416.9,5.96262323]
[1769897410979,0.37060893,2418.1,2417.3,3.63649423]
[1769897411779,0.16281779,2417.9,2417.2,3.63649423]
[1769897411984,0.36989779,2417.7,2417.0,3.63649423]
[1769897413077,0.36989779,2417.7,2416.9,3.63649423]
[1769897415087,0.36945205,2417.5,2416.9,3.63649423]
[1769897415287,0.36946205,2417.4,2416.7,3.63649423]
[1769897415490,0.16235205,2417.3,2416.7,3.63649423]
[1769897416185,0.16235205,2417.3,2416.8,3.74895199]
[1769897416386,0.16235205,2417.3,2416.7,3.63649423]
[1769897416588,0.16235205,2417.3,2416.8,3.74964093]
[1769897416787,0.16235205,2417.3,2416.7,3.63649423]
[1769897416988,0.16235205,2417.3,2416.8,3.74941156]
[1769897417187,0.16235205,2417.3,2416.7,3.63649423]
[1769897417489,0.16235205,2417.3,2416.8,3.74902248]
[1769897417689,0.16235205,2417.3,2416.7,3.63649423]
[1769897417889,0.16235205,2417.3,2416.8,3.74973456]
[1769897418089,0.16235205,2417.3,2416.7,3.63649423]
[1769897418390,0.16235205,2417.3,2416.8,3.75039384]
[1769897418587,0.16210576,2417.2,2416.8,3.74790406]
[1769897418787,0.16210576,2417.2,2416.7,3.74790406]
[1769897419092,0.16210576,2417.2,2416.6,3.64082856]
[1769897419394,0.16210576,2417.2,2416.7,3.88336502]
[1769897419588,0.16210576,2417.0,2416.7,3.44229502]
[1769897419788,0.16210576,2416.7,2415.9,5.96262323]
[1769897420189,0.16210576,2416.4,2415.5,8.79968628]
[1769897420395,0.16210576,2416.4,2414.7,10.3996292]
[1769897420396,0.16210688,2416.1,2414.9,11.35574332]
[1769897420788,0.16653724,2416.1,2415.1,0.00418702]
[1769897420995,0.16210688,2415.7,2415.1,0.00418702]
[1769897421896,0.20725,2415.8,2415.1,0.00418702]
[1769897422092,0.00443036,2416.1,2415.1,0.00418702]
[1769897422600,0.00443036,2416.1,2415.2,2.428]
[1769897423993,0.16599592,2416.1,2415.1,0.00418702]
[1769897424794,0.1626516,2415.8,2415.1,0.00418702]
[1769897426096,0.1626516,2415.8,2414.5,3.312]
[1769897427202,0.1626516,2415.8,2414.5,3.3150912]
[1769897427401,0.20724,2415.9,2414.5,3.3150912]
[1769897427598,0.1671554,2416.1,2414.6,4.83433519]
[1769897427798,0.1671554,2416.1,2414.6,5.04167519]
[1769897427998,0.1671554,2416.1,2414.7,0.20734]
[1769897428202,0.00443036,2416.1,2414.8,4.83433519]
[1769897429298,0.1689315,2416.1,2414.8,4.83433519]
[1769897429496,0.1689315,2416.1,2414.7,5.04167519]
[1769897430904,0.3761515,2416.1,2414.7,5.04167519]
[1769897431201,0.1655314,2416.0,2414.7,5.04167519]
[1769897431805,0.21165036,2416.1,2414.8,4.83433519]
[1769897432303,0.00443036,2416.1,2415.0,5.04164519]
[1769897432503,0.00443036,2416.1,2415.1,4.15]
[1769897433200,0.17000533,2416.1,2414.9,4.83433519]
[1769897434294,0.17000533,2416.1,2414.8,4.83433519]
[1769897435202,0.1658649,2415.8,2414.7,7.81654784]
[1769897435406,0.1658649,2415.8,2414.7,4.15]
[1769897435802,0.1658649,2415.5,2414.5,4.83742639]
[1769897436002,0.1658649,2415.4,2414.5,0.0030912]
[1769897436803,0.16554769,2416.0,2414.5,0.0030912]
[1769897437006,0.00443036,2416.1,2414.8,2.42000076]
[1769897437206,0.16554539,2416.8,2415.1,2.42000076]
[1769897437396,0.20715,2417.0,2415.5,2.42000076]
[1769897437595,0.20715,2417.0,2415.4,0.20728]
[1769897437596,0.20715,2417.0,2415.6,4.84900076]
[1769897437797,0.37269539,2417.0,2415.6,4.84900076]
[1769897438107,0.16554539,2417.3,2415.9,2.42000076]
[1769897438406,0.16554539,2417.3,2416.1,2.42000076]
[1769897438407,0.00295436,2417.3,2416.1,2.42000076]
[1769897438805,0.1681611,2417.3,2415.9,2.42000076]
[1769897439009,0.1681611,2417.3,2415.8,2.42000076]
[1769897439207,0.1681611,2417.3,2416.0,2.42000076]
[1769897439701,0.1681611,2417.3,2415.9,2.42000076]
[1769897440301,0.1681611,2417.3,2416.1,2.42000076]
[1769897440900,0.1681611,2417.3,2416.0,2.42000076]
[1769897441210,0.1681611,2417.3,2416.1,2.42000076]
[1769897441511,0.1681611,2417.3,2416.0,2.42000076]
[1769897441811,0.1681611,2417.3,2415.9,2.42000076]
[1769897442711,0.1681611,2417.3,2415.8,2.42000076]
[1769897443206,0.1681611,2417.3,2416.2,2.42000076]
[1769897443407,0.1681611,2417.3,2416.3,2.42000076]
[1769897443609,0.1681611,2417.3,2416.4,2.42000076]
[1769897444311,0.1681611,2417.3,2416.2,2.4229058]
[1769897444708,0.1681611,2417.3,2416.3,2.42000076]
[1769897445105,0.1681611,2417.3,2416.4,2.42000076]
[1769897447310,0.1681611,2417.3,2416.4,6.0865486]
[1769897447510,0.1681611,2417.3,2416.4,2.42000076]
[1769897447810,0.1681611,2417.3,2416.4,6.0865486]
[1769897448005,0.1681611,2417.3,2416.4,2.42000076]
[1769897448212,0.1681611,2417.3,2416.5,2.42000076]
[1769897448613,0.1681611,2417.3,2416.4,6.0865486]
[1769897448813,0.1681611,2417.3,2416.4,2.42000076]
[1769897449015,0.1681611,2417.3,2416.4,6.0865486]
[1769897449215,0.1681611,2417.3,2416.4,2.42000076]
[1769897450117,0.20713,2417.2,2416.4,2.42000076]
[1769897450313,0.16497333,2417.0,2416.2,2.4229058]
[1769897450819,0.37211333,2417.0,2416.2,2.4229058]
[1769897451014,0.37212386,2416.9,2416.2,2.4229058]
[1769897451317,0.16497386,2416.8,2416.2,0.00290504]
[1769897452108,0.16497386,2416.8,2415.9,4.83433519]
[1769897452109,0.16497386,2416.2,2415.9,2.42000076]
[1769897452313,0.16497386,2416.2,2415.6,2.42000076]
[1769897452314,0.16497386,2416.1,2415.6,2.42000076]
[1769897452718,0.16497386,2416.1,2415.4,2.42000076]
[1769897453119,0.16497386,2416.1,2415.4,2.42394888]
[1769897453621,0.16497386,2416.1,2415.4,0.00394812]
[1769897455012,0.16497386,2416.1,2415.4,2.42394888]
[1769897456222,0.16497386,2416.1,2415.4,6.31302624]
[1769897460626,0.16497386,2416.1,2415.4,2.42394888]
[1769897461119,0.16497386,2416.1,2415.4,6.31302624]
[1769897461329,0.16497386,2416.1,2415.4,2.42394888]
[1769897461625,0.16497386,2416.1,2415.5,3.88907736]
[1769897461821,3.313,2416.8,2415.2,1.91127377]
[1769897461822,0.16478952,2416.0,2415.2,1.91127377]
[1769897462027,0.20728,2415.4,2414.7,0.16195364]
[1769897462425,0.20728,2415.4,2414.8,0.16195364]
[1769897462818,0.2124082,2415.4,2414.8,0.16519229]
[1769897463821,0.0051282,2415.4,2414.9,0.16195399]
[1769897464022,0.279312,2415.9,2415.1,0.16195399]
[1769897464223,0.279312,2415.9,2414.8,0.00323865]
[1769897464224,0.20725,2415.7,2415.2,0.15938989]
[1769897464422,0.20727,2415.6,2414.9,0.15938989]
[1769897465027,0.21233721,2415.6,2414.9,0.15938989]
[1769897466018,0.20727,2415.5,2414.9,0.15938989]
[1769897466923,0.00506721,2415.6,2414.8,0.00323865]
[1769897468122,0.00506721,2415.6,2415.2,0.15972215]
[1769897468328,0.20725,2415.8,2415.4,0.15718855]
[1769897468534,0.20725,2415.8,2415.6,0.15724395]
[1769897468829,0.07206319,2416.1,2415.6,0.15724395]
[1769897469232,0.20725,2415.8,2414.8,0.00323865]
[1769897469530,0.20725,2415.8,2415.1,4.1392]
[1769897469730,0.20725,2415.8,2415.2,4.1392]
[1769897470232,0.20725,2415.8,2415.4,4.1392]
[1769897470426,0.20725,2415.8,2415.2,4.1392]
[1769897470826,0.20725,2415.8,2415.4,4.1392]
[1769897471028,0.07741455,2416.1,2415.5,4.1392]
[1769897471331,0.07741455,2416.1,2414.9,0.14585754]
[1769897471528,0.07741455,2416.1,2415.2,0.14585754]
[1769897471833,0.00535136,2416.1,2415.2,0.14585754]
[1769897472027,0.00535136,2416.1,2415.4,0.14585754]
[1769897472825,0.1610152,2416.1,2415.4,4.1392]
[1769897473024,0.20724,2415.9,2415.2,0.14585754]
[1769897473220,0.20724,2415.9,2415.2,4.28505754]
[1769897473531,0.20727,2415.6,2414.8,0.14909619]
[1769897473731,0.20727,2415.6,2414.9,4.1392]
[1769897474026,0.20727,2415.6,2415.1,0.14585754]
[1769897474328,0.20723,2416.0,2415.3,0.14585754]
[1769897474826,0.20724,2415.9,2415.3,0.14585754]
[1769897475232,0.20724,2415.9,2415.3,4.28505754]
[1769897475625,0.00535136,2416.1,2415.0,0.14585754]
[1769897475626,0.20725,2415.8,2415.0,0.14585754]
[1769897476022,0.20725,2415.8,2415.1,0.14585754]
[1769897476325,0.20725,2415.8,2415.4,0.14585754]
[1769897477225,0.20725,2415.7,2414.9,0.14585754]
[1769897477732,0.20725,2415.7,2415.1,0.14585754]
[1769897478326,0.20727,2415.6,2414.9,0.14585754]
[1769897478728,0.20727,2415.6,2414.9,4.28505754]
[1769897479131,0.20727,2415.6,2415.0,4.1392]
[1769897479327,0.2073,2415.2,2414.8,0.00323865]
[1769897479534,0.20731,2415.1,2414.4,3.89815458]
[1769897479735,0.20731,2415.1,2414.4,0.14585754]
[1769897479928,5.89966384,2415.8,2414.8,0.14585754]
[1769897480331,0.20727,2415.6,2414.9,4.28505754]
[1769897480531,0.20727,2415.6,2414.9,0.14894681]
[1769897480731,0.20727,2415.6,2415.2,0.14585754]
[1769897481135,0.15566384,2415.5,2414.9,0.00308927]
[1769897481337,0.15566384,2415.5,2414.9,3.75538631]
[1769897481535,0.15566384,2415.4,2414.7,3.71462512]
[1769897481738,0.36296384,2415.2,2414.3,4.98019273]
[1769897482037,0.36296384,2415.2,2414.4,0.14585754]
[1769897482634,0.36296384,2415.2,2414.4,0.14921884]
[1769897482835,0.15566384,2415.6,2414.4,0.14921884]
[1769897483035,0.15566384,2415.6,2414.5,0.14585754]
[1769897484132,0.20728,2415.4,2414.5,0.14585754]
[1769897484334,0.15566384,2415.2,2414.4,0.0033613]
[1769897484934,0.15566384,2414.9,2414.4,0.0033613]
[1769897485438,0.36299384,2414.9,2414.4,0.0033613]
[1769897485934,0.20733,2414.9,2414.4,0.0033613]
[1769897486234,0.20733,2414.9,2414.4,0.14921884]
[1769897491231,0.20733,2414.9,2414.4,0.0033613]
[1769897491431,0.36299384,2414.8,2414.0,4.98019273]
[1769897491637,0.36299384,2414.8,2414.0,0.14585754]
[1769897491940,0.36299384,2414.8,2414.1,3.81802456]
[1769897492340,0.36299384,2414.8,2414.1,0.15122772]
[1769897492839,0.20733,2414.8,2414.3,0.14585754]
[1769897493141,0.20733,2414.8,2414.1,4.83970537]
[1769897493142,0.20733,2414.8,2414.1,3.6775372]
[1769897493341,0.20733,2414.8,2414.1,0.00537018]
[1769897493342,0.15566384,2414.7,2414.1,0.00537018]
[1769897494143,0.20744,2413.6,2413.0,6.03853436]
[1769897494334,0.20747,2413.2,2412.2,0.16197264]
[1769897494533,40.46641657,2414.2,2411.3,6.03853436]
[1769897494534,0.20755,2412.3,2411.3,6.03853436]
[1769897494739,0.15566384,2412.6,2411.0,3.97546037]
[1769897494942,2.43,2412.7,2411.1,4.1424]
[1769897494943,0.20754,2412.4,2411.1,4.1424]
[1769897495243,0.21259403,2412.4,2411.1,0.00331297]
[1769897495444,0.21259403,2412.4,2411.5,4.1424]
[1769897495647,0.21259403,2412.4,2411.4,4.1424]
[1769897496142,0.21259403,2412.4,2411.5,8.11786037]
[1769897496343,0.00505403,2412.4,2411.6,4.1424]
[1769897496542,0.00505403,2412.4,2411.8,4.28825754]
[1769897496740,0.00505403,2412.4,2412.0,0.14585754]
[1769897496937,0.00505403,2412.4,2412.0,4.12131791]
[1769897497137,0.00505403,2412.4,2412.0,8.26371791]
[1769897497534,0.00505403,2412.4,2411.7,0.14775867]
[1769897498344,0.00505403,2412.4,2411.7,4.12321904]
[1769897499147,0.20748,2413.1,2412.2,4.1424]
[1769897499341,0.20748,2413.1,2412.3,0.14775867]
[1769897500140,0.21272079,2413.1,2412.3,0.14775867]
[1769897500346,0.16185549,2413.1,2412.0,0.14775867]
[1769897500746,0.2075,2412.9,2412.1,3.97546037]
[1769897500940,0.2075,2412.9,2412.1,4.12321904]
[1769897501145,0.2075,2412.9,2412.2,4.29015867]
[1769897501552,0.2075,2412.9,2412.3,3.97546037]
[1769897502049,0.2075,2412.9,2412.3,8.11786037]
[1769897502850,0.2075,2412.9,2412.3,8.27063648]